bitfinex/quotes_ETHUSD_20240716
["timestamp","ask_amount","ask_price","bid_price","bid_amount"]
[1721113784070,2.3627,3416.0,3415.5,3.0]
[1721113784300,2.3627,3416.0,3415.2,3.0]
[1721113784514,2.3627,3416.0,3415.2,5.92808]
[1721113785113,2.3627,3416.0,3415.2,3.0]
[1721113785312,2.3627,3416.0,3415.1,3.0]
[1721113785613,2.92779,3415.6,3414.5,0.015]
[1721113785828,2.3753,3415.5,3414.5,0.015]
[1721113786414,2.2555,3415.2,3414.5,0.015]
[1721113787309,2.2555,3415.2,3414.7,2.92851]
[1721113787619,2.2555,3415.2,3415.0,2.92824]
[1721113787912,2.2555,3415.2,3415.1,0.585666]
[1721113788214,2.2555,3415.9,3415.1,0.585666]
[1721113788409,2.2555,3415.9,3415.4,2.92784]
[1721113788733,2.2555,3415.9,3415.5,2.92782]
[1721113788910,2.2555,3415.9,3415.6,3.0]
[1721113789210,0.0698786,3416.1,3415.7,0.592782]
[1721113789382,0.0698786,3416.1,3415.8,2.92757]
[1721113789583,0.0698786,3416.1,3415.9,3.0]
[1721113791035,0.0698786,3416.1,3415.7,0.592782]
[1721113791036,0.0698786,3416.1,3415.7,3.592782]
[1721113791350,0.0698786,3416.1,3415.7,0.592782]
[1721113791558,0.0698786,3416.1,3416.0,2.9274]
[1721113791757,0.0698786,3416.1,3416.0,3.0]
[1721113792124,0.0698786,3416.1,3415.8,3.0]
[1721113792459,0.0698786,3416.1,3415.5,2.9278]
[1721113792616,0.0698786,3416.1,3415.6,3.0]
[1721113792820,0.0698786,3416.1,3415.7,0.885551]
[1721113794027,0.0698786,3416.1,3415.8,2.92754]
[1721113794229,0.0698786,3416.1,3415.9,3.0]
[1721113794554,0.0698786,3416.1,3416.0,2.9274]
[1721113794722,0.0698786,3416.1,3416.0,5.9274]
[1721113794920,0.0698786,3416.1,3416.0,7.2014511]
[1721113797874,0.0698786,3416.1,3416.0,10.1288511]
[1721113798023,0.0698786,3416.1,3416.0,10.6788511]
[1721113798218,1e-08,3416.1,3416.0,10.6788511]
[1721113799571,7.32,3416.8,3416.7,2.9268]
[1721113799718,2.28,3416.9,3416.7,6.512174]
[1721113800117,2.28,3416.9,3416.8,5.92671]
[1721113800322,2.289,3417.3,3416.8,5.92671]
[1721113800723,2.289,3417.3,3416.9,2.92662]
[1721113800918,2.289,3417.3,3417.0,3.0]
[1721113802778,2.289,3417.3,3416.1,2.92724]
[1721113803054,2.289,3417.3,3415.6,0.610957]
[1721113803055,2.4756,3417.2,3415.6,0.610957]
[1721113803258,2.4756,3417.2,3415.9,2.92742]
[1721113803460,4.151189,3417.1,3415.9,3.512926]
[1721113803853,4.151189,3417.1,3415.9,0.585506]
[1721113804172,2.4756,3417.0,3415.8,2.92755]
[1721113804337,2.4756,3417.0,3415.9,3.0]
[1721113805463,2.4756,3417.0,3415.8,3.0]
[1721113805776,2.4063,3416.9,3415.5,5.92781]
[1721113805982,2.2987,3416.7,3415.1,0.610957]
[1721113806204,3.09,3416.9,3414.7,3.54136365]
[1721113806205,2.2987,3416.2,3414.7,3.54136365]
[1721113806474,2.2987,3415.6,3414.7,2.92851]
[1721113806968,2.2987,3415.6,3414.8,1.01825196]
[1721113807179,2.2987,3415.6,3414.5,0.015]
[1721113808233,2.379,3415.4,3414.5,0.015]
[1721113808434,4.034,3415.2,3414.5,0.015]
[1721113808690,2.379,3415.1,3414.5,0.015]
[1721113808849,5.30718,3415.1,3414.5,0.015]
[1721113809233,2.379,3415.0,3414.5,0.015]
[1721113810984,2.9286,3414.6,3414.5,0.015]
[1721113811140,5.89726,3414.6,3414.5,0.015]
[1721113811591,2.96866,3414.6,3414.5,0.015]
[1721113811943,2.2724,3414.6,3414.5,0.015]
[1721113813972,7.32,3415.0,3414.5,0.015]
[1721113814271,7.32,3415.0,3414.5,3.015]
[1721113815558,7.32,3415.0,3414.6,3.0]
[1721113815799,7.32,3415.0,3414.5,0.015]
[1721113816286,7.32,3415.0,3414.5,3.60226]
[1721113816487,7.32,3415.0,3414.7,2.92851]
[1721113816658,7.32,3415.0,3414.8,3.0]
[1721113817064,19.62,3415.5,3414.8,5.92841]
[1721113817289,2.2847,3415.7,3415.0,2.92817]
[1721113817449,2.2847,3415.7,3415.1,3.885658]
[1721113817787,2.2847,3415.7,3415.2,0.05855852]
[1721113817951,7.32,3415.9,3415.6,2.92765]
[1721113818151,2.2847,3416.3,3415.3,0.55]
[1721113818354,2.2847,3416.3,3415.6,2.92774]
[1721113818557,2.2847,3416.3,3415.8,2.9275]
[1721113818780,2.2847,3416.3,3415.9,2.92747]
[1721113818991,2.2847,3416.3,3416.0,3.0]
[1721113819761,2.2847,3416.3,3415.7,6.220424]
[1721113820124,2.2847,3416.3,3415.8,2.92756]
[1721113820299,2.2847,3416.3,3415.9,3.0]
[1721113820879,2.2847,3416.3,3415.4,3.0]
[1721113821084,2.2847,3416.3,3415.4,6.575639]
[1721113821390,2.2847,3416.3,3415.4,3.0]
[1721113821584,2.2847,3416.3,3415.3,3.0]
[1721113821997,2.2847,3416.3,3415.4,2.9279]
[1721113822211,2.2847,3416.3,3415.5,3.0]
[1721113822422,19.62,3416.4,3414.6,2.92851]
[1721113822423,4.034,3416.0,3414.6,2.92851]
[1721113822574,4.034,3416.0,3414.5,2.9436]
[1721113822773,4.034,3416.0,3414.5,0.015]
[1721113822774,2.2975,3415.9,3414.5,0.015]
[1721113822989,2.2975,3415.9,3414.9,2.92828]
[1721113823278,2.2975,3415.9,3415.5,2.92776]
[1721113824311,7.32,3416.4,3415.6,2.92771]
[1721113824312,9.6599,3416.4,3415.6,2.92771]
[1721113824528,9.6599,3416.4,3415.7,3.0]
[1721113825323,9.6599,3416.4,3414.5,2.94366]
[1721113825324,9.6599,3416.4,3415.4,3.0]
[1721113825529,9.6599,3416.4,3415.1,2.92816]
[1721113825680,9.6599,3416.4,3415.2,2.92806]
[1721113825879,0.96599,3416.3,3415.3,2.92799]
[1721113826279,0.96599,3416.3,3415.1,2.9281]
[1721113826917,0.96599,3416.3,3415.4,2.9279]
[1721113827127,9.6599,3416.4,3415.6,2.92774]
[1721113827332,2.3399,3416.4,3415.8,2.92755]
[1721113827677,2.3399,3416.4,3415.9,3.0]
[1721113827815,2.3399,3416.4,3415.9,2.92748]
[1721113828002,2.3399,3416.4,3416.0,5.92736]
[1721113828197,2.3399,3416.4,3416.0,2.92736]
[1721113828413,2.3399,3416.4,3416.1,3.0]
[1721113828587,2.3399,3416.4,3416.1,5.9273]
[1721113828787,7.32,3416.8,3416.1,3.0]
[1721113828992,2.4789,3417.1,3416.3,2.92707]
[1721113829297,2.4789,3417.1,3416.4,3.0]
[1721113830346,2.4789,3417.1,3416.3,3.0]
[1721113830548,2.4789,3417.1,3416.3,5.92711]
[1721113830748,2.4789,3417.1,3416.3,3.0]
[1721113830914,0.97989,3417.0,3416.2,3.0]
[1721113831110,0.97989,3417.0,3415.9,3.0]
[1721113831336,2.2789,3416.9,3415.9,3.0]
[1721113831543,2.2789,3416.9,3415.7,5.92765]
[1721113831747,2.2789,3416.9,3415.7,3.0]
[1721113831949,0.97989,3417.0,3415.3,2.92798]
[1721113831950,2.4916,3416.7,3415.3,2.92798]
[1721113832115,2.4916,3416.7,3414.7,3.53978336]
[1721113832116,2.4916,3416.7,3415.4,2.92788]
[1721113832627,2.4916,3416.7,3414.7,3.84545504]
[1721113832628,2.4916,3416.7,3415.6,2.92772]
[1721113832810,2.4916,3416.7,3415.4,2.92788]
[1721113833014,2.4916,3416.7,3415.0,2.92818]
[1721113833213,2.3757,3416.5,3415.0,0.292818]
[1721113833413,2.3757,3416.5,3414.5,0.62626265]
[1721113833614,2.3757,3416.5,3415.5,2.92777]
[1721113834526,2.3757,3416.5,3415.6,3.0]
[1721113834913,2.3757,3416.5,3415.2,3.0]
[1721113835112,2.3757,3416.5,3414.5,0.62626265]
[1721113835319,0.530252,3416.4,3414.6,2.02235939]
[1721113835531,2.3757,3416.5,3415.5,2.92776]
[1721113835728,2.3757,3416.5,3415.6,5.92773]
[1721113835946,2.3757,3416.5,3415.6,3.0]
[1721113836144,2.3757,3416.5,3415.5,3.0]
[1721113836357,2.3757,3416.5,3415.6,2.92772]
[1721113836554,2.6458579,3416.5,3415.7,3.0]
[1721113836732,2.6458579,3416.5,3415.5,3.0]
[1721113836933,2.6458579,3416.5,3415.5,5.9278]
[1721113837148,2.3757,3416.5,3415.8,2.9275]
[1721113837456,4.034,3417.6,3416.1,2.92727]
[1721113837457,2.2653,3417.6,3416.1,2.92727]
[1721113837667,2.2653,3417.5,3416.2,3.0]
[1721113837820,2.2653,3417.5,3416.2,5.9272]
[1721113838016,2.2653,3417.5,3416.3,2.9271]
[1721113838255,2.2653,3417.5,3416.4,0.59271]
[1721113838256,3.0984748,3417.5,3416.4,0.59271]
[1721113838921,3.0984748,3417.5,3416.5,0.30389938]
[1721113839124,3.0984748,3417.5,3416.7,2.92679]
[1721113839125,2.2653,3417.5,3416.7,2.92679]
[1721113839325,2.2653,3417.5,3416.8,3.0]
[1721113840116,2.2653,3417.5,3416.6,3.0]
[1721113840547,2.2653,3417.5,3416.5,0.30389938]
[1721113842125,2.2653,3417.5,3416.6,2.92681]
[1721113842322,2.2653,3417.5,3416.7,3.0]
[1721113842522,2.2653,3417.5,3416.5,3.30389938]
[1721113843024,2.2653,3417.5,3416.6,3.0]
[1721113843855,2.2653,3417.5,3416.6,5.92687]
[1721113844225,2.2653,3417.5,3416.7,2.92673]
[1721113844564,2.2653,3417.5,3416.8,3.0]
[1721113844721,2.2653,3417.5,3416.6,2.92687]
[1721113845344,2.2653,3417.5,3416.7,2.92679]
[1721113847255,2.2653,3417.5,3416.8,3.0]
[1721113847463,2.2653,3417.5,3416.7,3.0]
[1721113847753,2.2653,3417.5,3416.8,0.62307794]
[1721113848066,2.2653,3417.5,3416.9,2.92662]
[1721113848271,2.2653,3417.5,3417.0,3.0]
[1721113849273,2.2653,3417.5,3416.9,5.92662]
[1721113849654,2.2653,3417.5,3416.9,5.92661]
[1721113849954,2.2653,3417.5,3417.0,0.65496879]
[1721113850174,0.050528,3417.7,3417.4,2.92617]
[1721113850373,0.050528,3417.7,3417.5,2.92609]
[1721113850887,0.050528,3417.7,3417.1,5.92645]
[1721113851243,0.050528,3417.7,3417.4,2.92612]
[1721113851449,0.050528,3417.7,3417.5,2.92609]
[1721113852490,0.050528,3417.7,3417.6,5.92602]
[1721113852777,0.050528,3417.7,3417.6,5.85204]
[1721113852983,0.050528,3417.7,3417.6,8.85204]
[1721113853755,7.32,3418.4,3417.6,3.85389938]
[1721113854095,12.3,3418.9,3417.6,3.85389938]
[1721113854096,7.32,3418.7,3418.3,2.92535]
[1721113854383,2.3332,3419.0,3418.4,5.92532]
[1721113854892,2.3332,3419.0,3418.5,2.92519]
[1721113855190,7.32,3419.1,3418.9,2.92491]
[1721113855398,7.32,3419.1,3418.6,5.92516]
[1721113855543,7.32,3419.1,3418.8,2.92492]
[1721113855746,7.32,3419.1,3418.9,3.0]
[1721113856046,7.32,3419.1,3418.9,5.92483]
[1721113856697,7.32,3419.1,3419.0,2.92483]
[1721113856983,2.5053786,3419.6,3419.0,3.30389938]
[1721113857152,0.25053786,3419.5,3419.0,0.30389938]
[1721113857347,0.25053786,3419.5,3419.1,0.30389938]
[1721113857548,2.5053786,3419.6,3419.1,0.30389938]
[1721113860599,3.09,3419.5,3419.1,0.30389938]
[1721113860894,2.3831,3419.2,3419.1,0.30389938]
[1721113861255,6.01466,3419.2,3419.1,0.30389938]
[1721113861572,8.39776,3419.2,3419.1,0.30389938]
[1721113861773,9.933377,3419.2,3419.1,0.30389938]
[1721113862104,3.918717,3419.2,3419.1,0.30389938]
[1721113862405,2.3831,3419.2,3419.1,0.30389938]
[1721113863901,5.4731,3419.2,3419.1,0.30389938]
[1721113864054,8.39776,3419.2,3419.1,0.30389938]
[1721113864261,3.09,3418.9,3417.5,2.92611]
[1721113864598,3.09,3418.9,3417.6,3.0]
[1721113864599,5.4414,3418.8,3417.6,3.0]
[1721113864756,5.4414,3418.8,3417.3,5.92626]
[1721113864757,1.53253,3418.7,3417.3,5.92626]
[1721113865161,1.53253,3418.7,3417.6,2.92599]
[1721113865366,2.3514,3418.8,3417.3,3.0]
[1721113865587,2.3514,3418.8,3418.0,2.9256]
[1721113865772,2.3514,3418.8,3418.1,2.92559]
[1721113868116,2.3514,3418.8,3418.0,2.9256]
[1721113868562,2.3514,3418.8,3418.1,2.92556]
[1721113868768,2.58654,3418.8,3417.7,5.92591]
[1721113869069,2.58654,3418.8,3417.8,2.92585]
[1721113869269,2.58654,3418.8,3417.9,3.0]
[1721113870393,2.3514,3418.8,3417.9,3.0]
[1721113870582,2.3514,3418.8,3418.1,2.92559]
[1721113871306,2.3514,3418.8,3418.4,2.92533]
[1721113871542,2.3514,3418.8,3418.5,3.0]
[1721113871903,2.3955,3419.5,3418.5,5.92525]
[1721113872150,2.64703786,3419.5,3418.5,3.0]
[1721113872354,2.64703786,3419.5,3418.4,0.05850582]
[1721113872355,2.3955,3419.5,3418.9,2.92488]
[1721113873744,2.3955,3419.5,3418.4,2.92533]
[1721113873913,2.3955,3419.5,3418.5,3.0]
[1721113874114,2.3955,3419.5,3418.5,5.92523]
[1721113874524,2.3955,3419.5,3418.1,2.92556]
[1721113874838,2.3693,3419.3,3418.1,2.92556]
[1721113875058,2.3693,3419.3,3417.2,3.6992037]
[1721113875213,2.3693,3419.3,3418.7,2.92508]
[1721113875951,2.3693,3419.3,3418.8,2.92499]
[1721113876252,0.1198786,3419.6,3418.8,2.92499]
[1721113876600,0.1198786,3419.6,3418.9,3.0]
[1721113876804,0.1198786,3419.6,3419.0,2.92475]
[1721113878004,0.1198786,3419.6,3419.1,2.92471]
[1721113878461,0.1198786,3419.6,3419.4,2.92448]
[1721113879007,0.1198786,3419.6,3419.2,5.92464]
[1721113879202,0.1198786,3419.6,3419.2,3.0]
[1721113879409,2.4634,3419.5,3418.8,3.0]
[1721113879641,2.72172786,3419.5,3418.8,3.0]
[1721113880210,2.4634,3419.5,3418.8,5.92497]
[1721113880525,2.4634,3419.5,3419.1,2.92473]
[1721113880722,2.4634,3419.5,3419.3,2.92449]
[1721113881616,0.1198786,3419.6,3419.3,2.92449]
[1721113881948,0.1198786,3419.6,3419.4,2.92444]
[1721113882544,0.1198786,3419.6,3419.5,2.9244]
[1721113882970,2.3087,3419.5,3418.0,0.91381101]
[1721113883116,2.3087,3419.3,3418.2,2.92548]
[1721113883312,2.3087,3419.3,3418.4,2.92531]
[1721113883730,2.3087,3419.3,3418.2,2.92547]
[1721113883932,2.3087,3419.3,3418.3,2.92539]
[1721113884657,2.3087,3419.3,3417.7,2.9259]
[1721113884658,2.3087,3419.3,3418.7,2.92501]
[1721113884824,0.25515579,3419.2,3418.5,2.92524]
[1721113885912,0.25515579,3419.2,3418.6,2.92515]
[1721113887770,0.25515579,3419.2,3418.4,2.92534]
[1721113888057,0.25515579,3419.2,3418.5,5.92524]
[1721113888556,0.25515579,3419.2,3418.6,2.92517]
[1721113890024,0.98838558,3419.1,3418.5,3.0]
[1721113890450,0.98838558,3419.1,3418.5,5.92521]
[1721113890663,0.98838558,3419.1,3418.7,2.92503]
[1721113890828,2.3087,3419.3,3418.6,2.92517]
[1721113891149,2.3087,3419.3,3417.7,3.83988246]
[1721113891150,2.3087,3419.3,3418.7,3.0]
[1721113891346,2.3087,3419.3,3418.0,0.60929497]
[1721113891552,2.3087,3419.3,3418.2,2.9255]
[1721113891746,0.96287,3419.2,3418.3,3.0]
[1721113891951,0.96287,3419.2,3418.4,2.92528]
[1721113892161,0.96287,3419.2,3418.5,3.0]
[1721113894248,0.96287,3419.2,3418.3,3.0]
[1721113894571,0.96287,3419.2,3418.4,2.92533]
[1721113894745,1.059157,3419.1,3418.5,3.0]
[1721113895139,1.059157,3419.1,3418.3,3.0]
[1721113895357,1.059157,3419.1,3418.3,5.92542]
[1721113895854,1.059157,3419.1,3418.3,3.0]
[1721113896050,0.3367857,3419.0,3418.3,5.92541]
[1721113896267,0.3367857,3419.0,3418.3,3.0]
[1721113896448,0.3367857,3419.0,3417.8,3.0]
[1721113896653,0.3367857,3419.0,3417.7,0.61160429]
[1721113896654,2.4025,3418.9,3417.7,0.61160429]
[1721113896839,2.4025,3418.7,3417.7,0.61160429]
[1721113897161,2.4025,3418.6,3417.2,2.92636]
[1721113897674,2.4025,3418.6,3417.3,2.92627]
[1721113898474,2.4025,3418.6,3417.4,3.0]
[1721113898640,2.04604343,3418.5,3417.3,2.92627]
[1721113898971,2.3984,3418.4,3417.3,2.92627]
[1721113899176,2.3984,3418.4,3417.4,2.92618]
[1721113901083,2.3984,3418.4,3417.6,2.92596]
[1721113901239,2.84284434,3418.4,3417.7,2.92593]
[1721113901434,2.3984,3418.4,3417.7,2.92593]
[1721113902679,2.3984,3418.4,3417.8,2.92583]
[1721113903592,2.3984,3418.4,3417.7,2.92593]
[1721113904488,2.3984,3418.4,3417.4,2.92613]
[1721113904676,0.23984,3418.3,3417.4,2.92613]
[1721113904871,0.23984,3418.3,3417.3,2.92626]
[1721113905309,0.23984,3418.3,3417.4,2.92619]
[1721113906185,2.2998,3418.2,3417.3,2.92622]
[1721113906990,2.2998,3418.2,3417.1,2.92645]
[1721113907189,0.253964,3418.1,3417.1,2.92645]
[1721113907797,0.253964,3418.1,3417.2,2.92634]
[1721113908085,0.253964,3418.1,3417.3,2.92625]
[1721113908769,2.2998,3418.2,3417.3,2.92625]
[1721113909923,2.2998,3418.2,3417.4,2.92619]
[1721113910336,2.2998,3418.2,3417.7,2.92586]
[1721113910521,2.2998,3418.2,3417.5,2.9261]
[1721113910686,2.2998,3418.2,3417.8,2.92582]
[1721113912401,2.2998,3418.2,3417.7,2.92591]
[1721113912938,2.2998,3418.2,3417.7,2.92587]
[1721113913291,2.2998,3418.2,3417.8,2.92583]
[1721113914227,2.3419,3418.7,3417.9,2.92576]
[1721113914439,2.3419,3418.7,3418.0,3.0]
[1721113914642,2.3419,3418.7,3418.1,2.9256]
[1721113914848,2.3419,3418.7,3418.2,2.92548]
[1721113917173,2.3419,3418.7,3418.0,5.92568]
[1721113917174,2.3419,3418.7,3418.0,3.0]
[1721113917454,2.4394,3418.5,3417.4,2.92614]
[1721113917643,2.4394,3418.5,3417.5,3.0]
[1721113918132,2.4394,3418.5,3417.5,5.92609]
[1721113918332,2.4394,3418.5,3417.7,2.9259]
[1721113918644,2.779959,3418.5,3417.7,2.9259]
[1721113918844,2.4394,3418.5,3417.5,3.0]
[1721113919136,2.4394,3418.5,3418.0,2.92566]
[1721113920370,2.4394,3418.5,3417.8,2.92581]
[1721113920833,2.4394,3418.5,3417.9,2.92574]
[1721113921001,2.4394,3418.5,3417.7,2.92587]
[1721113921203,0.24394,3418.4,3417.4,3.0]
[1721113921399,2.4151,3418.3,3417.3,5.92625]
[1721113923750,2.4151,3418.3,3417.3,3.0]
[1721113924244,2.4151,3418.3,3417.3,5.92626]
[1721113924816,2.4151,3418.3,3417.0,2.92652]
[1721113924817,2.4151,3418.3,3416.4,0.6121517]
[1721113925051,2.2811,3418.1,3416.5,0.55643793]
[1721113925395,2.2811,3418.1,3417.2,2.92634]
[1721113925860,2.2811,3418.1,3417.0,2.92653]
[1721113926060,2.2811,3418.1,3417.3,2.92628]
[1721113926210,0.2547004,3418.0,3417.3,2.92628]
[1721113926849,2.2811,3418.1,3417.1,5.92645]
[1721113927159,2.2811,3418.1,3417.4,2.92617]
[1721113927460,2.2811,3418.1,3417.2,2.92633]
[1721113928055,2.2811,3418.1,3417.1,5.92638]
[1721113928358,2.2811,3418.1,3417.3,2.92621]
[1721113928650,2.2811,3418.1,3417.8,2.92579]
[1721113929313,2.454,3418.7,3417.3,0.885266]
[1721113929514,2.454,3418.7,3417.8,2.92581]
[1721113930860,2.454,3418.7,3417.3,1.49782749]
[1721113931045,2.454,3418.7,3417.4,2.18010706]
[1721113931251,2.454,3418.7,3417.8,2.92584]
[1721113931639,2.454,3418.7,3417.9,3.0]
[1721113931836,2.454,3418.7,3417.6,2.92596]
[1721113932033,2.454,3418.7,3417.8,2.92583]
[1721113932252,2.454,3418.7,3417.9,5.92574]
[1721113932425,2.454,3418.7,3418.0,2.92567]
[1721113932635,2.454,3418.7,3417.7,3.0]
[1721113933237,2.454,3418.7,3417.9,2.92577]
[1721113933574,2.454,3418.7,3417.8,2.92584]
[1721113933791,2.454,3418.7,3417.9,3.0]
[1721113934063,0.2454,3418.6,3417.9,3.0]
[1721113934569,0.2454,3418.6,3417.4,1.52599562]
[1721113934570,2.3511,3418.5,3417.4,5.92612]
[1721113934735,2.3511,3418.5,3417.5,2.92609]
[1721113934922,2.3511,3418.5,3417.6,3.0]
[1721113936186,2.3511,3418.5,3417.4,2.9262]
[1721113936360,2.3511,3418.3,3417.4,2.9262]
[1721113936560,2.3511,3418.3,3417.2,2.92636]
[1721113936867,2.3511,3418.3,3417.1,5.13898783]
[1721113936868,2.3511,3418.3,3417.4,2.92619]
[1721113937388,8.24576042,3418.4,3417.0,2.92652]
[1721113937389,2.3511,3418.0,3417.0,2.92652]
[1721113937751,2.95665493,3418.0,3417.1,2.92644]
[1721113938073,0.38649873,3417.9,3417.1,2.92644]
[1721113938385,0.38649873,3417.9,3417.3,2.92625]
[1721113938599,2.3511,3418.0,3417.2,1.52644567]
[1721113938748,2.3511,3418.0,3417.4,2.92611]
[1721113939290,2.3511,3418.0,3417.5,2.92608]
[1721113939783,2.3511,3418.0,3417.3,2.92625]
[1721113939991,2.3511,3418.0,3416.9,2.13943788]
[1721113940203,2.3511,3418.0,3417.2,2.92636]
[1721113940350,2.3511,3418.0,3417.5,2.9261]
[1721113940548,2.3511,3418.0,3417.8,2.92585]
[1721113940753,7.32,3419.0,3417.1,2.92641]
[1721113940754,2.8635249,3418.9,3418.1,2.92553]
[1721113941116,2.3997,3418.7,3417.6,2.92598]
[1721113941390,0.6062249,3418.8,3417.7,3.0]
[1721113941391,2.3997,3418.5,3417.7,3.0]
[1721113941951,2.3997,3418.5,3417.9,2.92577]
[1721113942396,2.3997,3418.5,3418.0,2.92565]
[1721113943287,2.3997,3418.5,3418.1,2.92556]
[1721113943491,2.3997,3418.5,3418.2,4.01721384]
[1721113943703,0.90933736,3419.5,3418.2,4.01721384]
[1721113943704,2.3997,3419.2,3418.6,2.92515]
[1721113944565,2.3997,3419.2,3418.4,2.92534]
[1721113944807,2.3997,3419.2,3418.5,1.01715869]
[1721113944953,2.3997,3419.2,3419.0,2.92475]
[1721113945156,2.3997,3419.2,3419.1,2.92474]
[1721113945355,0.1198786,3419.6,3419.1,2.92474]
[1721113945356,0.1198786,3419.6,3419.1,0.584949]
[1721113945793,0.1198786,3419.6,3419.4,2.92448]
[1721113946584,0.1198786,3419.6,3419.5,2.9244]
[1721113947091,0.1198786,3419.6,3419.5,8.8488]
[1721113948109,0.1198786,3419.6,3419.5,5.9244]
[1721113949968,0.1198786,3419.6,3419.5,3.0]
[1721113950169,0.1198786,3419.6,3419.3,2.92457]
[1721113950170,0.1198786,3419.6,3419.4,3.0]
[1721113950495,0.1198786,3419.6,3419.5,2.9244]
[1721113950701,0.1198786,3419.6,3419.5,8.8488]
[1721113956261,0.2939,3420.5,3420.1,2.92387]
[1721113956896,0.2939,3420.5,3420.3,2.92371]
[1721113957104,0.2939,3420.5,3420.4,2.92363]
[1721113958781,0.2939,3421.5,3420.5,2.92354]
[1721113958980,0.2939,3421.1,3420.5,2.92354]
[1721113959790,2.4187,3421.2,3420.8,2.92327]
[1721113959997,2.4187,3421.2,3421.0,2.92305]
[1721113960318,2.4187,3421.2,3420.8,2.92327]
[1721113960463,2.4187,3421.2,3420.9,2.9232]
[1721113960661,2.4187,3421.2,3421.1,2.92303]
[1721113962994,2.4187,3421.2,3420.4,3.0]
[1721113962995,2.4187,3421.2,3420.6,2.92342]
[1721113963208,2.4187,3421.2,3420.7,2.92336]
[1721113963494,2.4187,3421.2,3420.4,2.92363]
[1721113963495,2.4187,3421.2,3420.4,3.0]
[1721113963705,2.4125,3421.9,3421.0,2.92309]
[1721113964569,2.4125,3421.9,3421.2,2.92293]
[1721113964769,2.4125,3421.9,3421.3,2.92286]
[1721113967242,2.4125,3421.9,3421.1,2.92303]
[1721113967545,2.4125,3421.9,3421.2,5.92294]
[1721113968523,2.4125,3421.9,3421.3,2.92286]
[1721113969206,2.4125,3421.9,3421.4,2.92277]
[1721113969724,2.4125,3421.9,3421.2,5.92291]
[1721113970061,2.4125,3421.9,3421.2,3.0]
[1721113970238,2.95535,3421.9,3421.2,3.0]
[1721113970586,2.95535,3421.9,3421.1,3.0]
[1721113970862,2.95535,3421.9,3421.0,3.0]
[1721113971073,2.95535,3421.9,3421.1,2.92302]
[1721113971252,2.95535,3421.9,3421.2,3.0]
[1721113971469,2.4125,3421.9,3421.4,2.92277]
[1721113972323,2.4125,3421.9,3421.5,2.92268]
[1721113972528,2.4125,3421.9,3421.4,2.92277]
[1721113974683,2.4125,3421.9,3421.5,2.92269]
[1721113977978,2.4125,3421.9,3421.3,2.92285]
[1721113978185,2.4125,3421.9,3421.5,2.92266]
[1721113978595,2.4125,3421.9,3421.3,2.92286]
[1721113978765,2.4125,3421.9,3421.5,2.92266]
[1721113979462,2.4125,3421.9,3421.4,2.92273]
[1721113980528,2.65375,3421.9,3420.8,2.92324]
[1721113980816,2.4369,3421.5,3420.1,2.92388]
[1721113980975,2.4369,3421.0,3419.9,2.92403]
[1721113981181,2.4369,3421.0,3419.7,2.9242]
[1721113981399,2.4369,3421.0,3419.6,2.92431]
[1721113981400,2.4369,3420.8,3419.6,2.92423]
[1721113981707,0.85369,3420.9,3419.6,2.92423]
[1721113981708,3.016,3420.7,3419.6,2.92423]
[1721113981878,2.2953,3420.6,3419.6,2.92423]
[1721113983770,2.2953,3420.6,3419.4,2.92448]
[1721113983962,2.2953,3420.6,3419.6,2.92431]
[1721113984203,3.218599,3420.6,3419.6,2.92431]
[1721113984992,3.218599,3420.6,3419.0,3.0]
[1721113984993,2.2953,3420.6,3419.7,0.05848662]
[1721113985223,2.2953,3420.6,3420.2,2.92378]
[1721113986239,2.2784,3421.4,3420.5,2.92354]
[1721113986745,2.2784,3421.4,3420.5,2.92348]
[1721113987839,2.2784,3421.4,3420.3,2.92364]
[1721113988202,2.2784,3421.4,3420.4,2.92362]
[1721113988512,2.2784,3421.4,3420.5,2.92353]
[1721113988896,2.2784,3421.4,3420.3,2.92369]
[1721113990114,2.2784,3421.4,3420.5,2.92353]
[1721113990327,2.80784,3421.4,3420.5,2.92353]
[1721113990833,2.80784,3421.4,3420.0,3.0]
[1721113990990,2.80784,3421.4,3419.6,0.60958758]
[1721113990991,2.80784,3421.4,3420.3,2.92371]
[1721113991195,2.80784,3421.4,3420.5,2.92354]
[1721113991982,2.2784,3421.4,3420.7,2.9233]
[1721113992452,2.2784,3421.4,3420.5,2.92352]
[1721113993173,2.2784,3421.4,3420.6,2.92346]
[1721113993361,2.2784,3421.4,3421.0,2.92311]
[1721113994151,2.2784,3421.4,3420.7,5.92334]
[1721113994152,2.2784,3421.4,3420.8,2.92326]
[1721113994319,2.2784,3421.4,3420.9,3.0]
[1721113994517,2.50624,3421.4,3420.3,2.92371]
[1721113994845,2.50624,3421.4,3420.4,3.0]
[1721113995156,2.50624,3421.4,3420.5,2.92352]
[1721113995364,2.2784,3421.4,3420.5,2.92352]
[1721113995865,2.2784,3421.4,3420.4,3.0]
[1721113996669,2.2784,3421.4,3420.9,2.92314]
[1721113996830,2.2784,3421.4,3421.0,2.9231]
[1721113997424,2.2784,3421.4,3421.1,2.92298]
[1721113997778,2.2784,3421.4,3421.2,0.292298]
[1721113998917,2.2784,3421.4,3421.2,3.215218]